bitfinex-derivatives/quotes_ETHF0:USTF0_20250314
["timestamp","ask_amount","ask_price","bid_price","bid_amount"]
[1741932804668,1.05682,1892.8,1892.7,0.00792205]
[1741932804868,2.38112,1892.8,1892.7,1.42582205]
[1741932805065,4.64512,1892.8,1892.7,1.42582205]
[1741932805657,3.5883,1892.8,1892.7,1.42582205]
[1741932806062,2.264,1892.8,1892.7,1.42582205]
[1741932806257,3.5883,1892.8,1892.7,1.42582205]
[1741932806858,3.2078,1893.1,1892.7,1.42582205]
[1741932807170,5.9312,1893.3,1892.8,4.9247]
[1741932807465,3.32166,1893.1,1892.9,1.333]
[1741932807711,1.05671,1893.0,1892.9,1.333]
[1741932808168,2.44321,1893.0,1892.9,1.333]
[1741932808962,1.05682,1892.8,1892.7,0.00792205]
[1741932809666,3.32282,1892.8,1892.7,0.00792205]
[1741932809867,4.73512,1892.8,1892.7,1.39382205]
[1741932811268,3.6783,1892.8,1892.7,1.39382205]
[1741932811471,2.266,1892.8,1892.7,1.39382205]
[1741932812771,2.266,1892.8,1892.7,2.45070205]
[1741932813069,4.5426,1893.3,1892.7,1.39382205]
[1741932813270,3.642,1893.2,1892.8,1.3254]
[1741932813471,1.377,1893.1,1892.8,1.3254]
[1741932813664,1.377,1893.1,1892.9,0.6882]
[1741932813972,2.43365,1893.1,1893.0,1.3254]
[1741932814367,1.05675,1893.0,1892.7,3.21572205]
[1741932814561,2.43375,1893.0,1892.8,2.0136]
[1741932814763,1.377,1893.0,1892.9,1.3254]
[1741932815663,2.43371,1893.0,1892.9,1.3254]
[1741932816671,1.377,1893.0,1892.9,1.3254]
[1741932816867,2.43371,1893.0,1892.9,1.3254]
[1741932817272,4.69871,1893.0,1892.9,1.3254]
[1741932817471,3.642,1893.0,1892.9,1.3254]
[1741932817669,2.265,1893.0,1892.9,1.3254]
[1741932817875,2.265,1893.0,1892.9,2.38217]
[1741932819675,3.6581,1893.2,1893.0,1.05669]
[1741932819976,2.264,1893.2,1893.1,2.45155]
[1741932820171,5.4728,1893.3,1893.1,3.15445]
[1741932820471,6.52934,1893.3,1893.2,1.3949]
[1741932820671,7.89794,1893.3,1893.2,1.3949]
[1741932823572,2.42514,1893.3,1893.2,1.3949]
[1741932823978,1.3686,1893.3,1893.2,1.3949]
[1741932824474,1.3686,1893.3,1893.2,2.4515]
[1741932824988,1.3686,1893.3,1893.2,1.3949]
[1741932825183,1.3686,1893.3,1893.2,2.4515]
[1741932825879,0.7214,1893.6,1893.2,1.3949]
[1741932826072,1.3824,1893.5,1893.3,1.9723]
[1741932826272,1.05649,1893.4,1893.3,0.6652]
[1741932826979,2.43889,1893.4,1893.3,0.6652]
[1741932827986,1.05654,1893.3,1893.2,5.978]
[1741932828180,2.39674,1893.3,1893.2,5.978]
[1741932828786,1.3402,1893.3,1893.2,5.978]
[1741932828978,1.3402,1893.3,1893.2,6.6822]
[1741932829885,1.3402,1893.3,1893.2,0.7042]
[1741932830077,1.3402,1893.3,1893.2,1.7608]
[1741932830788,1.3402,1893.3,1893.2,0.7042]
[1741932830978,2.39674,1893.3,1893.2,0.7042]
[1741932833684,1.0566,1893.2,1893.1,3.9107]
[1741932833890,2.4529,1893.2,1893.1,3.9107]
[1741932835892,3.1738,1893.2,1893.1,3.9107]
[1741932836387,1.3963,1893.2,1893.1,3.9107]
[1741932836789,2.4529,1893.2,1893.1,3.9107]
[1741932837493,1.3963,1893.2,1893.1,3.9107]
[1741932837796,2.4529,1893.2,1893.1,3.9107]
[1741932838093,1.3963,1893.2,1893.1,3.9107]
[1741932838297,1.3963,1893.2,1893.1,4.96735]
[1741932839290,3.32155,1893.3,1893.2,1.0566]
[1741932839291,1.05655,1893.3,1893.2,1.0566]
[1741932839491,1.3132,1893.3,1893.2,1.0566]
[1741932839686,2.264,1893.4,1893.1,3.9107]
[1741932840002,3.32044,1893.5,1893.4,1.05649]
[1741932840289,4.63194,1893.5,1893.3,1.0565]
[1741932840489,4.63194,1893.5,1893.4,1.3512]
[1741932840681,3.32044,1893.5,1893.4,1.3512]
[1741932843486,2.264,1893.5,1893.4,3.84919]
[1741932843989,1.05643,1893.5,1893.4,3.84919]
[1741932844393,1.05643,1893.5,1893.4,2.7927]
[1741932844593,3.31841,1893.6,1893.4,3.84916]
[1741932844792,1.05641,1893.6,1893.5,1.4415]
[1741932844994,3.31841,1893.6,1893.5,1.4415]
[1741932849000,1.05641,1893.6,1893.5,1.4415]
[1741932849194,3.31541,1893.6,1893.5,1.4415]
[1741932851799,2.259,1893.6,1893.5,1.4415]
[1741932851999,3.31537,1893.6,1893.5,1.4415]
[1741932853103,4.62157,1893.6,1893.5,1.4415]
[1741932853298,4.61957,1893.6,1893.5,1.4415]
[1741932854500,3.5632,1893.6,1893.5,1.4415]
[1741932854704,4.61957,1893.6,1893.5,1.4415]
[1741932855605,2.36257,1893.6,1893.5,1.4415]
[1741932855904,1.3062,1893.6,1893.5,2.49793]
[1741932857298,2.36257,1893.6,1893.5,2.49793]
[1741932857795,1.3062,1893.6,1893.5,2.49793]
[1741932859703,2.36257,1893.6,1893.5,2.49793]
[1741932860209,2.36257,1893.6,1893.5,1.4415]
[1741932861711,1.05643,1893.5,1893.4,3.8924]
[1741932861913,2.45333,1893.5,1893.4,3.8924]
[1741932862411,2.45333,1893.5,1893.4,3.2078]
[1741932863402,2.45333,1893.5,1893.2,1.4085]
[1741932863403,1.3969,1893.5,1893.2,1.4085]
[1741932863600,1.05654,1893.3,1893.2,1.4085]
[1741932864108,2.45344,1893.3,1893.2,1.4085]
[1741932864302,2.45348,1893.3,1893.1,9.1858]
[1741932864504,1.3088,1893.2,1893.1,10.4938]
[1741932864699,1.3088,1893.2,1893.1,4.26445]
[1741932864902,1.3088,1893.2,1893.1,3.2078]
[1741932865613,1.3088,1893.2,1893.1,4.26445]
[1741932865811,1.3088,1893.2,1893.1,3.2078]
[1741932866605,2.3654,1893.2,1893.1,3.2078]
[1741932867116,1.3088,1893.2,1893.1,3.2078]
[1741932867411,2.3654,1893.2,1893.1,3.2078]
[1741932870407,4.5166,1893.2,1892.8,6.6513]
[1741932870610,1.05677,1892.9,1892.8,6.6513]
[1741932871015,1.05677,1892.9,1892.8,0.6733]
[1741932871718,2.40655,1893.0,1892.8,0.6733]
[1741932872113,1.3498,1892.9,1892.8,0.6733]
[1741932872418,1.3498,1892.9,1892.7,3.21572205]
[1741932872711,1.75882,1892.8,1892.7,3.21572205]
[1741932876119,1.75882,1892.8,1892.7,0.00792205]
[1741932877126,1.05682,1892.8,1892.7,3.93152205]
[1741932877619,1.05682,1892.8,1892.7,4.98840205]
[1741932877824,1.05682,1892.8,1892.7,3.93152205]
[1741932878012,1.05682,1892.8,1892.7,4.98840205]
[1741932878317,1.05682,1892.8,1892.7,3.93152205]
[1741932878520,3.30782,1892.8,1892.7,3.93152205]
[1741932880016,3.30782,1892.8,1892.7,4.98840205]
[1741932880212,2.251,1892.8,1892.7,4.98840205]
[1741932881614,3.30782,1892.8,1892.7,4.98840205]
[1741932882314,2.251,1892.8,1892.7,4.98840205]
[1741932882816,3.6254,1892.8,1892.7,4.98840205]
[1741932883325,3.6254,1892.8,1892.7,6.29270205]
[1741932883925,4.26443,1893.2,1893.1,1.05665]
[1741932884226,1.05672,1893.0,1892.7,9.90952205]
[1741932884424,5.4558,1893.2,1892.9,1.05677]
[1741932884724,1.05665,1893.1,1893.0,0.6964]
[1741932885223,2.43105,1893.1,1893.0,2.0007]
[1741932885419,2.43105,1893.1,1893.0,1.3043]
[1741932885620,1.05677,1892.9,1892.8,0.6964]
[1741932885817,1.05677,1892.9,1892.8,2.1073]
[1741932886321,2.43167,1892.9,1892.8,2.1073]
[1741932886625,1.3749,1892.9,1892.8,3.16412]
[1741932887848,3.30573,1893.0,1892.8,3.16412]
[1741932888129,3.30573,1893.0,1892.9,1.4109]
[1741932888524,2.249,1893.0,1892.9,2.46767]
[1741932889224,3.30571,1893.0,1892.9,1.4109]
[1741932889529,4.66251,1893.0,1892.9,1.4109]
[1741932896928,5.36831,1893.0,1892.9,1.4109]
[1741932901829,1.05677,1892.9,1892.8,4.5963]
[1741932902034,2.43077,1892.9,1892.8,3.2078]
[1741932902544,2.43077,1892.9,1892.8,4.5963]
[1741932905238,1.374,1892.9,1892.8,4.5963]
[1741932905544,1.374,1892.9,1892.8,6.34862]
[1741932905837,2.249,1893.0,1892.8,6.34862]
[1741932906028,2.447,1893.1,1892.9,1.3834]
[1741932906226,4.694,1893.1,1893.0,0.6919]
[1741932906738,3.6373,1893.1,1893.0,0.6919]
[1741932906938,4.69395,1893.1,1893.0,0.6919]
[1741932907138,4.69395,1893.1,1893.0,3.8997]
[1741932907439,4.69395,1893.1,1893.0,5.2647]
[1741932907632,1.3903,1893.1,1893.0,5.2647]
[1741932907839,4.69295,1893.1,1893.0,5.2647]
[1741932908327,2.44695,1893.1,1893.0,2.0569]
[1741932908532,2.44695,1893.1,1893.0,5.2647]
[1741932908937,1.3903,1893.1,1893.0,5.2647]
[1741932909142,4.63704,1893.2,1893.0,5.2647]
[1741932909331,4.63704,1893.2,1893.1,1.365]
[1741932909527,4.63704,1893.2,1893.1,2.0579]
[1741932910041,1.05156485,1893.4,1893.3,1.05654]
[1741932910232,1.05156485,1893.4,1893.2,11.67107]
[1741932910542,3.6688,1893.6,1893.3,3.15802]
[1741932910543,1.05645,1893.5,1893.3,3.15802]
[1741932910738,2.47925,1893.5,1893.4,1.4287]
[1741932910943,1.4228,1893.5,1893.4,2.1377]
[1741932911241,3.30239,1893.6,1893.4,3.19419]
[1741932911442,4.72519,1893.6,1893.5,1.4287]
[1741932915242,3.6688,1893.6,1893.5,1.4287]
[1741932915636,4.72517,1893.6,1893.5,1.4287]
[1741932916142,3.6688,1893.6,1893.5,1.4287]
[1741932916342,4.72517,1893.6,1893.5,1.4287]
[1741932916755,3.6688,1893.6,1893.5,2.48513]
[1741932916943,2.47917,1893.6,1893.5,1.4287]
[1741932917334,1.4228,1893.6,1893.5,2.48513]
[1741932917638,2.47917,1893.6,1893.5,1.4287]
[1741932918645,0.00792205,1893.7,1893.6,1.05637]
[1741932918842,1.05612,1894.1,1893.8,1.05626]
[1741932918843,3.30218,1894.0,1893.8,1.05626]
[1741932919041,4.64448,1894.0,1893.9,2.0518]
[1741932919247,1.05611,1894.1,1893.9,3.10799]
[1741932919437,1.05611,1894.1,1894.0,2.0454]
[1741932920636,3.31200205,1894.2,1894.0,2.0454]
[1741932920873,3.31200205,1894.2,1894.1,1.3844]
[1741932925643,3.31196205,1894.2,1894.1,1.3844]
[1741932927449,0.00792205,1894.2,1894.1,2.4405]
[1741932927849,2.246,1894.4,1894.1,2.44045]
[1741932928052,2.246,1894.4,1894.2,1.3464]
[1741932928248,1.056,1894.3,1894.2,2.0665]
[1741932930657,1.06383724,1894.4,1894.2,3.12254]
[1741932930847,1.06383724,1894.4,1894.3,2.1057]
[1741932931047,3.30883724,1894.4,1894.3,2.1057]
[1741932932574,2.25288724,1894.4,1894.0,3.2078]
[1741932932749,1.05615,1894.0,1893.9,5.98592205]
[1741932933053,3.30113,1894.1,1893.9,0.00792205]
[1741932933253,2.245,1894.1,1893.9,1.31212205]
[1741932933558,1.4038,1894.0,1893.9,2.36833205]
[1741932933744,2.45995,1894.0,1893.9,1.31212205]
[1741932933944,1.4038,1894.0,1893.9,4.51992205]
[1741932935156,2.45995,1894.0,1893.9,1.31212205]
[1741932935758,2.45995,1894.0,1893.9,0.00792205]
[1741932935951,3.12815,1894.0,1893.9,0.00792205]
[1741932937454,2.45995,1894.0,1893.9,0.00792205]
[1741932937661,2.45995,1894.0,1893.9,1.38812205]
[1741932938659,1.4038,1894.0,1893.9,1.38812205]
[1741932939362,2.45995,1894.0,1893.9,1.38812205]
[1741932940463,1.4038,1894.0,1893.9,1.38812205]
[1741932940759,1.4038,1894.0,1893.9,2.44433205]
[1741932940955,3.30211,1894.1,1893.9,1.38812205]
[1741932941156,1.05611,1894.1,1894.0,1.3331]
[1741932941762,2.41361,1894.1,1894.0,1.3331]
[1741932943265,1.3575,1894.1,1894.0,1.3331]
[1741932943455,0.7177,1894.3,1894.0,1.3331]
[1741932943456,2.245,1894.3,1894.0,1.3331]
[1741932943656,2.245,1894.3,1894.1,0.6958]
[1741932943657,1.05604,1894.2,1894.1,0.6958]
[1741932943858,2.40254,1894.2,1894.1,2.0412]
[1741932944057,1.3465,1894.2,1894.1,2.0412]
[1741932944767,2.40254,1894.2,1894.1,1.3454]
[1741932945764,3.11104,1894.2,1894.1,1.3454]
[1741932946261,3.81298,1894.2,1893.9,4.94921205]
[1741932946461,1.3465,1894.1,1894.0,2.40155]
[1741932947762,3.301,1894.3,1894.1,1.05609]
[1741932947963,2.43784,1894.2,1894.1,1.9655]
[1741932949563,1.3818,1894.2,1894.1,1.9655]
[1741932950368,2.43784,1894.2,1894.1,1.9655]
[1741932951792,1.3818,1894.2,1894.1,1.9655]
[1741932951964,1.3818,1894.2,1894.1,3.0216]
[1741932952171,1.3818,1894.2,1894.1,1.9655]
[1741932952360,1.3818,1894.2,1894.1,3.0216]
[1741932952577,2.43784,1894.2,1894.1,1.9655]
[1741932952766,1.3818,1894.2,1894.1,1.9655]
[1741932952963,2.43784,1894.2,1894.1,1.9655]
[1741932953167,1.3818,1894.2,1894.1,1.9655]
[1741932953571,2.43784,1894.2,1894.1,1.9655]
[1741932954267,1.3818,1894.2,1894.1,1.9655]
[1741932954466,2.43784,1894.2,1894.1,1.9655]
[1741932954868,2.43784,1894.2,1894.1,5.1733]
[1741932955668,1.3818,1894.2,1894.1,5.1733]
[1741932955872,1.3818,1894.2,1894.1,6.2294]
[1741932956089,2.43784,1894.2,1894.1,6.2294]
[1741932956275,1.3818,1894.2,1894.1,5.1733]
[1741932956570,1.3818,1894.2,1894.1,6.2294]
[1741932956767,1.3818,1894.2,1894.1,5.1733]
[1741932957076,3.96603724,1894.4,1894.2,1.05601]
[1741932957369,2.47958,1894.3,1894.2,0.683]
[1741932957775,2.47958,1894.3,1894.2,1.73904]
[1741932958077,1.4236,1894.3,1894.2,1.73904]
[1741932959073,1.4236,1894.3,1894.2,0.683]
[1741932959382,2.47958,1894.3,1894.2,0.683]
[1741932960173,2.47958,1894.3,1894.2,1.73904]
[1741932960676,2.47958,1894.3,1894.2,0.683]
[1741932962277,1.4236,1894.3,1894.2,1.73904]
[1741932963579,1.4236,1894.3,1894.2,0.683]
[1741932964976,2.47958,1894.3,1894.2,0.683]
[1741932966271,1.05604,1894.2,1894.1,3.2078]
[1741932966479,2.42474,1894.2,1894.1,3.2078]
[1741932969477,1.05615,1894.0,1893.9,0.00792205]
[1741932970180,2.38385,1894.0,1893.9,0.00792205]
[1741932987278,2.38385,1894.0,1893.9,1.39432205]
[1741932988391,1.3277,1894.0,1893.9,1.39432205]
[1741932988695,2.38385,1894.0,1893.9,1.39432205]
[1741932990893,1.3277,1894.0,1893.9,4.60212205]
[1741932991216,3.30112,1894.1,1893.9,5.65832205]
[1741932991398,3.30108,1894.2,1893.9,4.27192205]
[1741932991697,1.4311,1894.1,1894.0,0.7077]
[1741932992394,2.4872,1894.1,1894.0,0.7077]
[1741932999797,1.4311,1894.1,1894.0,0.7077]
[1741933000105,2.4872,1894.1,1894.0,0.7077]
[1741933003506,2.4872,1894.1,1894.0,2.0548]
[1741933004506,1.4311,1894.1,1894.0,2.0548]
[1741933004799,3.30106,1894.2,1894.0,3.11095]
[1741933005005,3.30104,1894.2,1894.1,2.1212]
[1741933005420,1.3337,1894.3,1894.1,3.17726]
[1741933005597,3.5787,1894.3,1894.2,1.4022]
[1741933006003,2.38968,1894.3,1894.2,1.4022]
[1741933006200,3.30885724,1894.4,1894.2,1.4022]
[1741933006403,4.64255724,1894.4,1894.3,0.6555]
[1741933006804,4.64255724,1894.4,1894.3,2.0577]
[1741933007004,1.34158724,1894.4,1894.3,2.0577]
[1741933007208,0.00788724,1894.4,1894.3,3.11368]
[1741933007403,0.00788724,1894.4,1894.3,6.32148]
[1741933009417,1.06381724,1894.4,1894.3,5.2655]
[1741933010001,2.36891724,1894.4,1894.3,5.2655]
[1741933010512,1.31298724,1894.4,1894.3,5.2655]
[1741933010712,2.36891724,1894.4,1894.3,5.2655]
[1741933010913,1.31298724,1894.4,1894.3,5.2655]
[1741933011411,2.36891724,1894.4,1894.3,5.2655]
[1741933011807,1.31298724,1894.4,1894.3,6.32148]
[1741933012108,0.00788724,1894.4,1894.3,5.2655]
[1741933012408,1.40838724,1894.4,1894.3,5.2655]
[1741933013005,1.40838724,1894.4,1894.3,6.32148]
[1741933015113,2.46431724,1894.4,1894.3,4.61]
[1741933015309,1.05611,1894.1,1893.9,4.27188205]
[1741933015516,1.05611,1894.1,1894.0,1.325]
[1741933016113,3.2078,1894.3,1894.0,1.325]
[1741933016414,1.05608,1894.2,1894.0,1.325]
[1741933016618,3.2078,1894.3,1893.9,3.21572205]
[1741933016818,1.05615,1894.0,1893.9,1.32512205]
[1741933017112,1.05615,1894.0,1893.9,0.00792205]
[1741933017313,1.72625,1894.0,1893.9,0.00792205]
[1741933019624,1.72625,1894.0,1893.7,3.2078]
[1741933019625,1.05637,1893.6,1893.5,3.2078]
[1741933019918,1.05649,1893.4,1893.3,3.2078]
[1741933020126,1.05649,1893.4,1893.3,4.5061]
[1741933020315,1.0566,1893.2,1893.1,6.6794]
[1741933020506,2.245,1893.3,1892.8,3.2078]
[1741933020712,2.245,1893.3,1892.8,4.5061]
[1741933020713,1.05672,1893.0,1892.8,4.5061]
[1741933020912,1.05672,1893.0,1892.9,1.30622205]
[1741933021533,1.06454205,1893.2,1892.9,2.36293205]
[1741933021713,0.00792205,1893.2,1893.0,2.7026]
[1741933021914,1.06452205,1893.2,1893.1,1.2983]
[1741933022117,0.00792205,1893.2,1893.1,1.2983]
[1741933023222,1.06452205,1893.2,1893.1,1.2983]
[1741933023918,0.00792205,1893.2,1893.1,1.2983]
[1741933024516,1.06452205,1893.2,1893.1,1.2983]
[1741933024717,0.00792205,1893.2,1893.1,1.2983]
[1741933025322,1.06452205,1893.2,1893.1,1.2983]
[1741933027916,1.72652205,1893.2,1893.1,1.2983]
[1741933028113,1.72652205,1893.2,1893.0,4.6121]
[1741933028313,1.05665,1893.1,1893.0,5.9577]
[1741933029221,1.05665,1893.1,1893.0,4.5534]
[1741933029921,1.73325,1893.1,1893.0,4.5534]
[1741933030719,1.73325,1893.1,1893.0,3.2078]
[1741933031821,1.73325,1893.1,1893.0,4.5942]
[1741933032623,0.00792205,1893.2,1893.0,4.5942]
[1741933032820,0.00792205,1893.2,1893.0,3.8894]
[1741933033026,1.05665,1893.1,1893.0,3.8894]
[1741933033425,2.45015,1893.1,1893.0,3.8894]
[1741933035730,2.45015,1893.1,1893.0,3.2078]
[1741933039337,1.05671,1893.0,1892.9,3.21572205]
[1741933039637,2.45031,1893.0,1892.9,3.21572205]
[1741933043732,4.69931,1893.0,1892.9,3.21572205]
[1741933046443,3.30571,1893.0,1892.9,3.21572205]
[1741933046634,2.249,1893.0,1892.9,3.21572205]
[1741933046939,1.05669,1893.1,1892.9,3.21572205]
[1741933047133,1.05669,1893.1,1892.9,4.61402205]
[1741933047333,1.05669,1893.1,1893.0,2.131]
[1741933048634,3.68992205,1893.2,1893.0,2.131]
[1741933048833,4.74652205,1893.2,1893.1,2.142]
[1741933049033,1.06452205,1893.2,1893.1,2.142]
[1741933049234,0.00792205,1893.2,1893.1,5.3498]
[1741933049432,0.00792205,1893.2,1893.1,12.38445]
[1741933049834,1.05643,1893.5,1893.2,1.05656]
[1741933050147,2.255,1893.5,1893.3,1.4428]
[1741933050336,6.52119,1893.6,1893.3,3.17279]
[1741933050535,1.05639,1893.6,1893.3,5.3241]
[1741933050741,1.05639,1893.6,1893.4,2.45657]
[1741933050935,1.05639,1893.6,1893.5,2.0962]
[1741933051341,2.38069,1893.6,1893.5,2.0962]
[1741933053243,2.38069,1893.6,1893.5,1.4001]
[1741933053442,5.58849,1893.6,1893.5,1.4001]
[1741933053645,6.26269,1893.6,1893.5,1.4001]
[1741933055145,1.05649,1893.4,1893.3,0.6735]
[1741933055746,1.73877,1893.5,1893.3,0.6735]
[1741933056646,2.46447,1893.5,1893.4,1.3536]
[1741933058544,1.05641,1893.6,1893.4,1.3536]
[1741933058849,3.31243,1893.5,1893.4,1.3536]
[1741933059048,2.256,1893.5,1893.4,1.3536]
[1741933059544,2.46442,1893.6,1893.4,1.3536]
[1741933059747,4.72042,1893.6,1893.4,1.3536]
[1741933060146,1.05643,1893.5,1893.4,1.3536]
[1741933062849,0.00788724,1893.7,1893.4,1.3536]
[1741933063153,0.00788724,1893.7,1893.6,1.05637]
[1741933063645,0.00788724,1893.7,1893.6,3.85307]
[1741933064048,3.31325,1893.9,1893.6,3.85307]
[1741933064049,3.2078,1894.1,1893.6,2.7967]
[1741933064346,2.257,1894.0,1893.8,1.05625]
[1741933064547,3.31315,1894.0,1893.9,1.4152]
[1741933066057,4.73115,1894.0,1893.9,1.4152]
[1741933069443,3.675,1894.0,1893.9,1.4152]
[1741933070150,4.73115,1894.0,1893.9,1.4152]
[1741933076161,2.47415,1894.0,1893.9,1.4152]
[1741933076350,4.72515,1894.0,1893.9,1.4152]
[1741933081063,4.72515,1894.0,1893.8,0.6799]
[1741933081363,1.05626,1893.8,1893.7,3.2078]
[1741933081564,1.05626,1893.8,1893.7,4.5926]
[1741933081865,1.05626,1893.8,1893.7,3.2078]
[1741933082062,2.39796,1893.8,1893.7,3.2078]
[1741933082972,2.39796,1893.8,1893.6,5.978]
[1741933082973,1.05632,1893.7,1893.6,5.978]
[1741933083161,1.05646,1893.5,1893.4,1.3848]
[1741933083360,1.05639,1893.6,1893.4,1.3848]
[1741933083557,2.39809,1893.6,1893.4,1.3848]
[1741933083959,2.38133,1893.5,1893.4,1.3848]
[1741933084762,1.3249,1893.5,1893.4,1.3848]
[1741933085161,1.3249,1893.5,1893.4,2.44129]
[1741933085566,1.3249,1893.5,1893.4,1.3848]
[1741933085767,2.38133,1893.5,1893.4,1.3848]
[1741933087870,1.3249,1893.5,1893.4,1.3848]
[1741933088066,1.3411,1893.6,1893.5,1.05641]
[1741933088267,1.3411,1893.6,1893.5,4.26421]
[1741933088668,1.3411,1893.7,1893.6,1.05637]
[1741933088967,2.249,1893.8,1893.7,1.05632]
[1741933089268,4.64829,1894.0,1893.8,1.05626]
[1741933089567,1.3411,1893.9,1893.8,1.05626]
[1741933097177,2.967,1894.1,1894.0,1.05615]
[1741933097373,2.967,1894.1,1893.7,9.1858]
[1741933097374,1.74578521,1894.3,1894.2,1.05604]
[1741933097577,1.05148521,1894.3,1894.2,1.05604]
[1741933097779,1.4409,1894.3,1894.2,1.05604]
[1741933098673,2.49688,1894.3,1894.2,1.05604]
[1741933099776,1.4409,1894.3,1894.2,1.05604]
[1741933101172,2.49692,1894.3,1894.1,1.05607]
[1741933101374,1.4409,1894.3,1894.1,1.05609]
[1741933101681,2.0326,1894.2,1894.1,1.05609]
[1741933101880,2.0326,1894.2,1894.0,0.6736]
[1741933102182,1.3054,1894.1,1894.0,1.72975]
[1741933103184,1.3054,1894.1,1894.0,3.05545]
[1741933106981,6.51375,1894.4,1894.2,1.056]
[1741933107180,3.2078,1894.4,1894.1,1.3745]
[1741933107376,6.51073,1894.4,1894.3,1.05598]
[1741933107585,6.765,1894.4,1894.3,1.05598]
[1741933109689,6.765,1894.4,1894.3,3.12528]
[1741933110198,7.82093,1894.4,1894.3,2.0693]
[1741933110881,2.36613,1894.4,1894.3,2.0693]
[1741933111083,1.3102,1894.4,1894.3,2.0693]
[1741933111296,1.3102,1894.4,1894.3,3.12528]
[1741933112091,4.26347,1894.9,1894.3,14.81108]
[1741933112285,1.3507,1895.0,1894.6,3.2078]
[1741933112487,1.424,1895.1,1894.8,3.2078]
[1741933112687,1.0556,1895.0,1894.9,1.4141]
[1741933113091,1.05576,1894.7,1894.6,5.98592205]
[1741933113289,1.05576,1894.7,1894.6,0.00792205]
[1741933113489,2.0934,1894.9,1894.6,0.00792205]
[1741933113691,3.16103,1894.8,1894.6,0.00792205]
[1741933113890,2.47976,1894.7,1894.6,1.42202205]
[1741933114192,1.424,1894.7,1894.6,1.42202205]
[1741933114488,2.47976,1894.7,1894.6,1.42202205]
[1741933114897,1.424,1894.7,1894.6,1.42202205]
[1741933115090,2.47976,1894.7,1894.6,0.00792205]
[1741933115490,4.72976,1894.7,1894.6,0.00792205]
[1741933117787,3.674,1894.7,1894.6,0.00792205]
[1741933117987,3.674,1894.7,1894.6,1.35672205]
[1741933118195,3.674,1894.7,1894.6,0.00792205]
[1741933118392,4.72976,1894.7,1894.6,0.00792205]
[1741933118791,4.72976,1894.7,1894.6,1.35672205]
[1741933118999,4.72976,1894.7,1894.6,0.00792205]
[1741933119392,3.674,1894.7,1894.6,0.00792205]
[1741933120200,4.72976,1894.7,1894.6,0.00792205]
[1741933121704,6.8818,1894.7,1894.2,3.2078]
[1741933121894,1.05598,1894.3,1894.0,9.1858]
[1741933122197,2.8668,1894.2,1894.1,1.3826]
[1741933122898,2.8668,1894.2,1894.0,3.2078]
[1741933123095,1.4302,1894.1,1894.0,3.21572205]
[1741933123396,1.4302,1894.1,1894.0,4.59832205]
[1741933123794,1.4302,1894.1,1894.0,5.65447205]
[1741933123996,1.4302,1894.1,1894.0,4.59832205]
[1741933126389,1.4302,1894.1,1894.0,5.65447205]
[1741933126595,1.06394205,1894.3,1894.0,5.65446205]
[1741933126795,2.36854205,1894.3,1894.1,1.3914]
[1741933127202,1.3046,1894.2,1894.1,1.3914]
[1741933127603,2.36064,1894.2,1894.1,1.3914]
[1741933133703,1.3046,1894.2,1894.1,1.3914]
[1741933134309,0.00792205,1894.3,1894.2,1.05604]
[1741933134502,0.00792205,1894.3,1894.2,4.97844]
[1741933135203,0.00792205,1894.3,1894.2,6.40414]
[1741933135402,0.00792205,1894.3,1894.2,5.3481]
[1741933135603,1.38922205,1894.3,1894.2,5.3481]
[1741933135804,2.44520205,1894.3,1894.2,5.3481]
[1741933139317,2.44520205,1894.3,1894.2,3.2078]
[1741933140307,1.0561,1894.1,1894.0,3.21572205]
[1741933140911,3.089,1894.1,1894.0,4.58202205]
[1741933142520,1.3707,1894.1,1894.0,4.58202205]
[1741933142715,1.05606,1894.2,1894.0,4.58202205]
[1741933142917,2.35646,1894.2,1894.1,2.0828]
[1741933144523,1.0561,1894.1,1894.0,3.21572205]
[1741933144720,3.1728,1894.1,1894.0,4.65092205]
[1741933145518,3.1728,1894.1,1894.0,3.21572205]
[1741933146221,3.1728,1894.1,1894.0,4.65092205]
[1741933146623,3.1728,1894.1,1894.0,1.44312205]
[1741933147616,3.1728,1894.1,1894.0,0.00792205]
[1741933153637,6.3806,1894.1,1894.0,0.00792205]
[1741933155019,1.05626,1893.8,1893.7,3.2078]
[1741933156423,2.248,1893.9,1893.7,4.6459]
[1741933156729,4.71971,1893.9,1893.8,2.0944]
[1741933157431,4.71971,1893.9,1893.8,1.4381]
[1741933158428,6.8713,1893.9,1893.6,0.00792205]
[1741933158727,1.05632,1893.7,1893.6,1.38382205]
[1741933159226,2.39252,1893.7,1893.6,1.38382205]
[1741933161420,3.06772,1893.7,1893.6,1.38382205]
[1741933164426,2.39252,1893.7,1893.6,1.38382205]
[1741933172036,1.05632,1893.7,1893.6,1.38382205]
[1741933173535,3.30232,1893.7,1893.6,1.38382205]
[1741933174538,4.71942,1893.7,1893.6,1.38382205]
[1741933182540,4.71942,1893.7,1893.4,3.8908]
[1741933182541,6.8709,1893.7,1893.4,3.19987795]
[1741933182741,1.05654,1893.3,1893.2,2.7569]
[1741933183046,1.05654,1893.3,1893.2,1.4269]
[1741933183047,3.30254,1893.3,1893.2,1.4269]
[1741933183845,4.73824,1893.3,1893.2,1.4269]
[1741933184644,1.0566,1893.2,1893.1,0.00792205]
[1741933184849,2.3871,1893.2,1893.1,1.44822205]
[1741933186145,2.3871,1893.2,1893.1,0.00792205]
[1741933186440,1.05671,1893.0,1892.9,3.2078]
[1741933186692,1.05671,1893.0,1892.7,3.2078]